fUST/lending_fUST_20250216
["ID","MTS","AMOUNT","RATE_DAILY","PERIOD"]
[353215755,1739661039572,-280.58544752,8.873e-05,2]
[353215756,1739661039581,-500.0,8.873e-05,2]
[353215757,1739661039591,-500.0,8.873e-05,2]
[353215758,1739661039600,-500.0,8.873e-05,2]
[353215759,1739661039610,-500.0,8.873e-05,2]
[353215760,1739661039621,-500.0,8.873e-05,2]
[353215761,1739661039630,-500.0,8.873e-05,2]
[353215762,1739661039640,-500.0,8.873e-05,2]
[353215763,1739661039650,-500.0,8.873e-05,2]
[353215764,1739661039660,-500.0,8.873e-05,2]
[353215765,1739661039674,-500.0,8.873e-05,2]
[353215766,1739661039684,-500.0,8.873e-05,2]
[353215767,1739661039693,-500.0,8.873e-05,2]
[353215768,1739661039703,-792.38,8.873e-05,2]
[353215769,1739661039715,-500.0,8.873e-05,2]
[353215770,1739661039724,-500.0,8.873e-05,2]
[353215771,1739661039734,-500.0,8.873e-05,2]
[353215772,1739661039746,-500.0,8.873e-05,2]
[353215773,1739661039756,-500.0,8.873e-05,2]
[353215774,1739661039765,-500.0,8.873e-05,2]
[353215775,1739661039775,-500.0,8.873e-05,2]
[353215776,1739661039785,-500.0,8.873e-05,2]
[353215777,1739661039794,-500.0,8.873e-05,2]
[353215778,1739661039804,-500.0,8.873e-05,2]
[353215779,1739661039815,-500.0,8.873e-05,2]
[353215780,1739661039824,-585.94786097,8.873e-05,2]
[353215781,1739661039835,-983.08,8.873e-05,2]
[353215782,1739661039845,-500.0,8.873e-05,2]
[353215783,1739661039855,-979.44,8.873e-05,2]
[353215784,1739661039865,-500.0,8.873e-05,2]
[353215785,1739661039875,-245.9810937,8.873e-05,2]
[353215786,1739661039885,-834.08,8.873e-05,2]
[353215787,1739661039896,-979.58,8.873e-05,2]
[353215788,1739661039907,-500.0,8.873e-05,2]
[353215789,1739661039917,-500.0,8.873e-05,2]
[353215790,1739661039928,-500.62051789,8.873e-05,2]
[353215791,1739661039937,-613.33913967,8.873e-05,2]
[353215792,1739661039947,-1084.85,8.873e-05,2]
[353215793,1739661039956,-245.65933639,8.873e-05,2]
[353215794,1739661039997,-254.34066361,8.873e-05,2]
[353215795,1739661040007,-500.0,8.873e-05,2]
[353215796,1739661040017,-2373.23837364,8.873e-05,2]
[353215797,1739661040083,-623.66162636,8.873e-05,2]
[353215798,1739661040092,-500.0,8.873e-05,2]
[353215799,1739661040103,-500.0,8.873e-05,2]
[353215800,1739661040112,-1478.69012963,8.873e-05,2]
[353215840,1739661040771,-78.80987037,8.873e-05,2]
[353215842,1739661040781,-8291.61146343,8.873e-05,2]
[353215846,1739661040807,-719.089473,8.873e-05,2]
[353215848,1739661040818,-2553.7,8.873e-05,2]
[353215935,1739661043727,-500.0,8.872e-05,2]
[353215937,1739661043739,-1.70278703,8.872e-05,2]
[353215938,1739661043856,-321.66502649,8.872e-05,2]
[353215939,1739661043869,-435.99218648,8.872e-05,2]
[353215940,1739661043880,-404.22540964,8.873e-05,2]
[353216610,1739661696220,24900.0,7.874e-05,2]
[353216613,1739662024294,-300.0,8.869e-05,2]
[353216614,1739662024316,-256.46250226,8.87e-05,2]
[353216615,1739662024327,-43.53749774,8.87e-05,2]
[353216616,1739662024343,-245.0,8.87e-05,2]
[353216617,1739662058181,-660.07250226,8.87e-05,2]
[353216618,1739662058212,-326.20499548,8.87e-05,2]
[353216619,1739662058225,-527.44500452,8.87e-05,2]
[353216620,1739662058234,-132.62749774,8.87e-05,2]
[353216621,1739662058245,-367.37250226,8.87e-05,2]
[353216622,1739662058255,-486.27749774,8.87e-05,2]
[353216628,1739662117838,-300.0,8.869e-05,2]
[353216629,1739662117870,-341.40250226,8.87e-05,2]
[353216630,1739662117901,-92.78499548,8.87e-05,2]
[353216631,1739662117917,-300.0,8.87e-05,2]
[353216632,1739662117928,-341.40250226,8.87e-05,2]
[353216633,1739662117943,-690.22250226,8.87e-05,2]
[353216634,1739662117953,-734.18749774,8.87e-05,2]
[353216638,1739662170445,7543.09659992,8.8e-05,2]
[353216639,1739662172034,542.56031136,8.769e-05,2]
[353216677,1739662231984,-1999.2,8.869e-05,2]
[353216678,1739662231994,-545.99,8.869e-05,2]
[353216679,1739662232004,-500.0,8.869e-05,2]
[353216680,1739662232016,-500.0,8.869e-05,2]
[353216681,1739662232026,-1557.85016691,8.87e-05,2]
[353216682,1739662232035,-157.43250226,8.87e-05,2]
[353216683,1739662232044,-500.0,8.87e-05,2]
[353216684,1739662232055,-868.76,8.87e-05,2]
[353216685,1739662232064,-500.0,8.87e-05,2]
[353216686,1739662232073,-500.0,8.87e-05,2]
[353216688,1739662232082,-1418.54,8.87e-05,2]
[353216690,1739662232093,-500.0,8.87e-05,2]
[353216692,1739662232102,-199.64,8.87e-05,2]
[353216694,1739662232111,-814.37,8.87e-05,2]
[353216697,1739662232121,-942.12,8.87e-05,2]
[353216700,1739662232130,-2276.93,8.87e-05,2]
[353216702,1739662232139,-799.33,8.87e-05,2]
[353216704,1739662232148,-3768.65,8.87e-05,2]
[353216706,1739662232158,-500.0,8.87e-05,2]
[353216708,1739662232167,-348.7034122,8.87e-05,2]
[353216710,1739662232176,-500.0,8.87e-05,2]
[353216712,1739662232186,-500.0,8.87e-05,2]
[353216714,1739662232195,-500.0,8.87e-05,2]
[353216716,1739662232204,-500.0,8.87e-05,2]
[353216718,1739662232213,-500.0,8.87e-05,2]
[353216720,1739662232223,-500.0,8.87e-05,2]
[353216722,1739662232231,-500.0,8.87e-05,2]
[353216724,1739662232241,-500.0,8.87e-05,2]
[353216726,1739662232249,-500.0,8.87e-05,2]
[353216728,1739662232258,-500.0,8.87e-05,2]
[353216730,1739662232267,-500.0,8.87e-05,2]
[353216732,1739662232276,-500.0,8.87e-05,2]
[353216734,1739662232286,-500.0,8.87e-05,2]
[353216736,1739662232295,-500.0,8.87e-05,2]
[353216738,1739662232304,-439.53521794,8.87e-05,2]
[353216740,1739662232313,-500.0,8.87e-05,2]
[353216742,1739662232323,-500.0,8.87e-05,2]
[353216744,1739662232332,-500.0,8.87e-05,2]
[353216746,1739662232341,-387.73228125,8.87e-05,2]
[353216749,1739662232354,-112.26771875,8.87e-05,2]
[353216751,1739662232363,-519.72215654,8.87e-05,2]
[353216753,1739662232375,-419.04784346,8.87e-05,2]
[353216755,1739662232385,-567.38,8.87e-05,2]
[353216757,1739662232394,-500.0,8.87e-05,2]
[353216759,1739662232403,-1111.76958258,8.87e-05,2]
[353217139,1739662237748,-260.43041742,8.87e-05,2]
[353217140,1739662237757,-619.34,8.87e-05,2]
[353217142,1739662237766,-2273.69,8.87e-05,2]
[353217144,1739662237775,-938.63,8.87e-05,2]
[353217146,1739662237785,-1492.6,8.87e-05,2]
[353217148,1739662237794,-728.36,8.87e-05,2]
[353217151,1739662237804,-500.0,8.87e-05,2]
[353217154,1739662237813,-1270.76,8.87e-05,2]
[353217157,1739662237822,-500.0,8.87e-05,2]
[353217160,1739662237831,-264.43229555,8.87e-05,2]
[353217163,1739662237840,-1057.06,8.87e-05,2]
[353217166,1739662237850,-1360.42,8.87e-05,2]
[353217169,1739662237859,-1360.42,8.87e-05,2]
[353217172,1739662237868,-500.0,8.87e-05,2]
[353217175,1739662237877,-1360.42,8.87e-05,2]
[353217178,1739662237886,-3075.45,8.87e-05,2]
[353217181,1739662237895,-1258.09,8.87e-05,2]
[353217184,1739662237904,-844.17,8.87e-05,2]
[353217186,1739662237914,-1069.98,8.87e-05,2]
[353217189,1739662237923,-1069.98,8.87e-05,2]
[353217191,1739662237932,-500.0,8.87e-05,2]
[353217193,1739662237941,-1644.1,8.87e-05,2]
[353217195,1739662237950,-500.0,8.87e-05,2]
[353217197,1739662237959,-500.0,8.87e-05,2]
[353217199,1739662237968,-500.0,8.87e-05,2]
[353217201,1739662237978,-500.0,8.87e-05,2]
[353217203,1739662237987,-500.0,8.87e-05,2]
[353217205,1739662237997,-500.0,8.87e-05,2]
[353217207,1739662238006,-500.0,8.87e-05,2]
[353217209,1739662238021,-615.48,8.87e-05,2]
[353217211,1739662238030,-1001.12,8.87e-05,2]
[353217213,1739662238039,-1325.71,8.87e-05,2]
[353217215,1739662238050,-1191.03,8.87e-05,2]
[353217216,1739662238059,-500.0,8.87e-05,2]
[353217218,1739662238069,-1909.16,8.87e-05,2]
[353217220,1739662238078,-4579.22,8.87e-05,2]
[353217223,1739662238089,-687.48,8.87e-05,2]
[353217224,1739662238098,-193.68974697,8.87e-05,2]
[353217227,1739662238108,-1200.25,8.87e-05,2]
[353217229,1739662238117,-500.0,8.87e-05,2]
[353217231,1739662238126,-500.0,8.87e-05,2]
[353217232,1739662238135,-1033.28,8.87e-05,2]
[353217234,1739662238144,-2134.18,8.87e-05,2]
[353217236,1739662238156,-500.0,8.87e-05,2]
[353217239,1739662238165,-500.0,8.87e-05,2]
[353217241,1739662238175,-2943.65,8.87e-05,2]
[353217243,1739662238185,-534.34,8.87e-05,2]
[353217245,1739662238194,-500.0,8.87e-05,2]
[353217247,1739662238203,-961.03,8.87e-05,2]
[353217248,1739662238212,-727.72,8.87e-05,2]
[353217251,1739662238221,-1586.54,8.87e-05,2]
[353217253,1739662238231,-780.44,8.87e-05,2]
[353217255,1739662238240,-500.0,8.87e-05,2]
[353217257,1739662238249,-500.0,8.871e-05,2]
[353217259,1739662238258,-500.0,8.871e-05,2]
[353217260,1739662238268,-500.0,8.871e-05,2]
[353217262,1739662238277,-500.0,8.871e-05,2]
[353217264,1739662238288,-500.0,8.871e-05,2]
[353217266,1739662238298,-500.0,8.871e-05,2]
[353217268,1739662238308,-608.26,8.871e-05,2]
[353217270,1739662238318,-720.38,8.871e-05,2]
[353217271,1739662238327,-590.56,8.871e-05,2]
[353217272,1739662238336,-500.0,8.871e-05,2]
[353217273,1739662238346,-500.0,8.871e-05,2]
[353217274,1739662238355,-500.0,8.871e-05,2]
[353217275,1739662238365,-500.0,8.871e-05,2]
[353217276,1739662238374,-1230.67,8.871e-05,2]
[353217277,1739662238383,-500.0,8.871e-05,2]
[353217278,1739662238392,-500.0,8.871e-05,2]
[353217279,1739662238401,-532.85,8.871e-05,2]
[353217280,1739662238411,-500.0,8.871e-05,2]
[353217281,1739662238420,-500.0,8.871e-05,2]
[353217282,1739662238429,-551.17,8.871e-05,2]
[353217283,1739662238439,-500.0,8.871e-05,2]
[353217284,1739662238448,-500.0,8.871e-05,2]
[353217285,1739662238457,-500.0,8.871e-05,2]
[353217286,1739662238467,-500.0,8.871e-05,2]
[353217288,1739662238476,-628.05162628,8.871e-05,2]
[353217290,1739662238485,-670.48,8.871e-05,2]
[353217292,1739662238494,-225.58673085,8.871e-05,2]
[353217294,1739662238503,-500.0,8.871e-05,2]
[353217296,1739662238513,-500.0,8.871e-05,2]
[353217298,1739662238524,-2472.3,8.871e-05,2]
[353217300,1739662238533,-500.0,8.871e-05,2]
[353217302,1739662238545,-261.08081073,8.871e-05,2]
[353217304,1739662238555,-500.0,8.871e-05,2]
[353217306,1739662238564,-500.0,8.871e-05,2]
[353217320,1739662238687,-505.0875877,8.871e-05,2]
[353217322,1739662238700,-2780.12,8.871e-05,2]
[353217324,1739662238710,-500.0,8.871e-05,2]
[353217326,1739662238719,-586.90001871,8.871e-05,2]
[353217328,1739662238729,-748.73,8.871e-05,2]
[353217330,1739662238738,-500.0,8.871e-05,2]
[353217332,1739662238748,-729.61,8.871e-05,2]
[353217334,1739662238758,-500.0,8.871e-05,2]
[353217336,1739662238767,-500.0,8.871e-05,2]
[353217338,1739662238776,-500.0,8.871e-05,2]
[353217340,1739662238786,-500.0,8.871e-05,2]
[353217342,1739662238795,-500.0,8.871e-05,2]
[353217344,1739662238805,-500.0,8.871e-05,2]
[353217346,1739662238814,-885.14,8.871e-05,2]
[353217348,1739662238823,-585.38,8.871e-05,2]
[353217350,1739662238832,-500.0,8.871e-05,2]
[353217352,1739662238841,-1075.54,8.871e-05,2]
[353217354,1739662238851,-591.36,8.871e-05,2]
[353217356,1739662238860,-500.0,8.871e-05,2]
[353217358,1739662238869,-500.0,8.871e-05,2]
[353217360,1739662238879,-500.0,8.871e-05,2]
[353217362,1739662238889,-1000.5,8.871e-05,2]
[353217364,1739662238898,-500.0,8.871e-05,2]
[353217366,1739662238908,-500.0,8.871e-05,2]
[353217368,1739662238916,-757.14,8.871e-05,2]
[353217370,1739662238925,-2556.79,8.871e-05,2]
[353217372,1739662238935,-500.0,8.871e-05,2]
[353217374,1739662238944,-500.0,8.871e-05,2]
[353217376,1739662238955,-500.0,8.871e-05,2]
[353217378,1739662238966,-501.16086823,8.871e-05,2]
[353217380,1739662238976,-500.0,8.871e-05,2]
[353217382,1739662238985,-502.47271874,8.871e-05,2]
[353217384,1739662238995,-531.98,8.871e-05,2]
[353217386,1739662239004,-500.0,8.871e-05,2]
[353217388,1739662239017,-500.0,8.871e-05,2]
[353217390,1739662239027,-500.0,8.871e-05,2]
[353217392,1739662239037,-962.92,8.871e-05,2]
[353217394,1739662239047,-500.0,8.871e-05,2]
[353217396,1739662239058,-500.0,8.871e-05,2]
[353217398,1739662239069,-505.09853762,8.871e-05,2]
[353217400,1739662239079,-500.40028626,8.871e-05,2]
[353217402,1739662239089,-500.0,8.871e-05,2]
[353217404,1739662239099,-500.0,8.871e-05,2]
[353217406,1739662239108,-519.06782538,8.871e-05,2]
[353217408,1739662239118,-500.0,8.871e-05,2]
[353217410,1739662239127,-500.0,8.871e-05,2]
[353217412,1739662239136,-500.0,8.871e-05,2]
[353217414,1739662239145,-500.0,8.871e-05,2]
[353217416,1739662239155,-511.00099134,8.871e-05,2]
[353217418,1739662239165,-500.0,8.871e-05,2]
[353217420,1739662239175,-158.27815667,8.871e-05,2]
[353217422,1739662239184,-500.0,8.871e-05,2]
[353217424,1739662239194,-330.85017429,8.871e-05,2]
[353217426,1739662239203,-500.0,8.871e-05,2]
[353217428,1739662239213,-1462.35,8.871e-05,2]
[353217430,1739662239222,-1039.65,8.871e-05,2]
[353217432,1739662239232,-500.0,8.871e-05,2]
[353217434,1739662239241,-501.11033946,8.871e-05,2]
[353217436,1739662239250,-500.0,8.871e-05,2]
[353217438,1739662239259,-624.23,8.871e-05,2]
[353217440,1739662239269,-3794.60071038,8.871e-05,2]
[353217441,1739662239284,-395.0,8.871e-05,2]
[353217442,1739662239295,-9685.43071662,8.871e-05,2]
[353217454,1739662240442,-75.43012049,8.869e-05,2]
[353217455,1739662240458,-424.56987951,8.869e-05,2]
[353217456,1739662240468,-20.16778099,8.871e-05,2]
[353217594,1739662245925,-272.19120742,8.869e-05,2]
[353217655,1739662350539,294.3462451,8.811e-05,2]
[353217656,1739662395590,196.2308301,8.788e-05,2]
[353217657,1739662440541,196.2308301,8.788e-05,2]
[353217658,1739662470748,160.0,0.00016783,120]
[353217659,1739662485537,196.2308302,8.788e-05,2]
[353217660,1739662555574,260.48318922,8.768e-05,2]
[353217663,1739662710729,160.0,0.00016903,120]
[353217664,1739662978535,193.47787,8.696e-05,2]
[353217666,1739663010715,160.0,0.00018944,120]
[353217671,1739663131292,160.0,0.00018092,120]
[353217675,1739663370807,160.0,0.0001815,120]
[353217710,1739663432002,-250.0,8.851e-05,2]
[353217712,1739663432012,-300.47,8.851e-05,2]
[353217714,1739663432022,-372.03,8.851e-05,2]
[353217716,1739663432032,-14.54531065,8.866e-05,2]
[353217718,1739663432044,-285.45468935,8.866e-05,2]
[353217720,1739663432054,-20.40313327,8.867e-05,2]
[353217723,1739663432073,-479.59686673,8.867e-05,2]
[353217726,1739663432083,-192.11726098,8.867e-05,2]
[353218249,1739663437990,-1200.21273902,8.867e-05,2]
[353218251,1739663438000,-500.0,8.867e-05,2]
[353218253,1739663438010,-500.0,8.867e-05,2]
[353218255,1739663438019,-3104.76,8.867e-05,2]
[353218257,1739663438029,-500.0,8.867e-05,2]
[353218259,1739663438039,-500.0,8.867e-05,2]
[353218261,1739663438049,-1190.37,8.867e-05,2]
[353218263,1739663438059,-500.0,8.867e-05,2]
[353218265,1739663438068,-500.0,8.867e-05,2]
[353218267,1739663438077,-500.0,8.867e-05,2]
[353218269,1739663438087,-500.0,8.867e-05,2]
[353218271,1739663438097,-500.0,8.867e-05,2]
[353218273,1739663438107,-1912.95,8.867e-05,2]
[353218275,1739663438116,-2054.71,8.867e-05,2]
[353218277,1739663438126,-1161.04,8.867e-05,2]
[353218279,1739663438136,-1052.73,8.867e-05,2]
[353218281,1739663438149,-4637.55,8.867e-05,2]
[353218283,1739663438158,-582.92,8.867e-05,2]
[353218285,1739663438167,-500.0,8.867e-05,2]
[353218287,1739663438178,-500.0,8.867e-05,2]
[353218289,1739663438187,-523.24,8.867e-05,2]
[353218292,1739663438201,-690.36,8.867e-05,2]
[353218294,1739663438211,-1589.35,8.867e-05,2]
[353218296,1739663438221,-2045.25,8.867e-05,2]
[353218298,1739663438231,-747.92,8.867e-05,2]
[353218300,1739663438241,-500.0,8.867e-05,2]
[353218302,1739663438251,-2277.37,8.867e-05,2]
[353218304,1739663438260,-697.4,8.867e-05,2]
[353218306,1739663438270,-209.43564494,8.867e-05,2]
[353218308,1739663438281,-3725.59,8.867e-05,2]
[353218310,1739663438291,-500.0,8.867e-05,2]
[353218312,1739663438300,-500.0,8.867e-05,2]
[353218314,1739663438310,-500.0,8.867e-05,2]
[353218316,1739663438320,-909.08,8.868e-05,2]
[353218318,1739663438332,-818.08,8.868e-05,2]
[353218320,1739663438342,-793.19,8.868e-05,2]
[353218322,1739663438352,-500.0,8.868e-05,2]
[353218324,1739663438362,-1365.06,8.868e-05,2]
[353218326,1739663438372,-854.47,8.868e-05,2]
[353218328,1739663438382,-500.0,8.868e-05,2]
[353218330,1739663438391,-237.32,8.868e-05,2]
[353218333,1739663438401,-500.0,8.868e-05,2]
[353218335,1739663438411,-832.56,8.868e-05,2]
[353218337,1739663438420,-304.0,8.868e-05,2]
[353218339,1739663438431,-1359.43,8.868e-05,2]
[353218341,1739663438440,-500.0,8.868e-05,2]
[353218343,1739663438453,-902.87,8.868e-05,2]
[353218345,1739663438463,-766.02,8.868e-05,2]
[353218347,1739663438472,-500.0,8.868e-05,2]
[353218349,1739663438482,-500.0,8.868e-05,2]
[353218351,1739663438491,-500.0,8.868e-05,2]
[353218353,1739663438500,-500.0,8.868e-05,2]
[353218355,1739663438510,-899.52,8.868e-05,2]
[353218357,1739663438519,-657.22,8.868e-05,2]
[353218359,1739663438529,-996.33,8.868e-05,2]
[353218361,1739663438538,-962.15,8.868e-05,2]
[353218363,1739663438548,-593.54,8.868e-05,2]
[353218365,1739663438558,-2964.06,8.868e-05,2]
[353218367,1739663438567,-34318.97,8.868e-05,2]
[353218369,1739663438577,-500.0,8.868e-05,2]
[353218371,1739663438589,-1513.75,8.868e-05,2]
[353218373,1739663438598,-500.0,8.868e-05,2]
[353218375,1739663438607,-980.81,8.868e-05,2]
[353218377,1739663438617,-980.81,8.868e-05,2]
[353218379,1739663438627,-980.81,8.868e-05,2]
[353218381,1739663438636,-980.81,8.868e-05,2]
[353218383,1739663438646,-980.81,8.868e-05,2]
[353218385,1739663438655,-980.81,8.868e-05,2]
[353218387,1739663438668,-980.81,8.868e-05,2]
[353218390,1739663438679,-980.81,8.868e-05,2]
[353218392,1739663438689,-15884.57,8.868e-05,2]
[353218394,1739663438698,-698.02,8.868e-05,2]
[353218396,1739663438708,-1217.81,8.868e-05,2]
[353218398,1739663438717,-1013.01,8.868e-05,2]
[353218400,1739663438726,-2000.48,8.868e-05,2]
[353218418,1739663438880,-1190.37,8.868e-05,2]
[353218421,1739663438898,-1190.37,8.868e-05,2]
[353218423,1739663438908,-1190.37,8.868e-05,2]
[353218425,1739663438917,-1190.37,8.868e-05,2]
[353218427,1739663438927,-1190.37,8.868e-05,2]
[353218429,1739663438936,-1190.37,8.868e-05,2]
[353218431,1739663438947,-1190.37,8.868e-05,2]
[353218433,1739663438956,-1190.37,8.868e-05,2]
[353218435,1739663438966,-1310.51,8.868e-05,2]
[353218437,1739663438975,-1999.2,8.868e-05,2]
[353218439,1739663438985,-500.0,8.868e-05,2]
[353218441,1739663438994,-1205.67,8.868e-05,2]
[353218443,1739663439003,-842.23,8.868e-05,2]
[353218445,1739663439012,-809.0,8.868e-05,2]
[353218447,1739663439021,-500.0,8.868e-05,2]
[353218449,1739663439031,-653.9,8.868e-05,2]
[353218451,1739663439040,-1575.6,8.868e-05,2]
[353218453,1739663439049,-550.65,8.868e-05,2]
[353218455,1739663439059,-500.0,8.868e-05,2]
[353218457,1739663439068,-500.0,8.868e-05,2]
[353218459,1739663439078,-500.0,8.868e-05,2]
[353218461,1739663439087,-500.0,8.868e-05,2]
[353218463,1739663439096,-500.0,8.868e-05,2]
[353218465,1739663439105,-589.83,8.868e-05,2]
[353218467,1739663439115,-959.4,8.868e-05,2]
[353218469,1739663439124,-1270.48,8.868e-05,2]
[353218471,1739663439133,-1224.74,8.868e-05,2]
[353218473,1739663439143,-500.0,8.868e-05,2]
[353218475,1739663439152,-500.0,8.868e-05,2]
[353218477,1739663439161,-658.84,8.868e-05,2]
[353218479,1739663439170,-500.0,8.868e-05,2]
[353218481,1739663439180,-500.0,8.868e-05,2]
[353218483,1739663439189,-500.0,8.868e-05,2]
[353218485,1739663439199,-2910.03,8.868e-05,2]
[353218487,1739663439208,-3802.98115388,8.868e-05,2]
[353218633,1739663910742,160.0,0.00017004,120]
[353218634,1739663970852,160.0,0.0001834,120]
[353218636,1739664039925,2084.5116609,7.87e-05,2]
[353218637,1739664082920,150.0,8.776e-05,2]
[353218639,1739664091866,160.0,0.0001873,120]
[353218640,1739664097022,396.0,8.776e-05,2]
[353218644,1739664631347,160.0,0.00018634,120]
[353218680,1739664632283,-1969.09,8.864e-05,2]
[353218682,1739664632293,-500.0,8.864e-05,2]
[353218684,1739664632304,-500.0,8.864e-05,2]
[353218686,1739664632313,-501.44,8.864e-05,2]
[353218688,1739664632323,-500.0,8.864e-05,2]
[353218690,1739664632333,-500.0,8.864e-05,2]
[353218692,1739664632342,-500.0,8.865e-05,2]
[353218695,1739664632352,-500.0,8.865e-05,2]
[353218697,1739664632361,-172.36534935,8.865e-05,2]
[353218700,1739664632371,-892.03,8.865e-05,2]
[353218702,1739664632381,-500.0,8.865e-05,2]
[353218704,1739664632391,-780.97,8.865e-05,2]
[353218706,1739664632399,-500.0,8.865e-05,2]
[353218708,1739664632409,-804.82,8.865e-05,2]
[353218710,1739664632419,-500.0,8.865e-05,2]
[353218712,1739664632429,-500.0,8.865e-05,2]
[353218714,1739664632438,-500.0,8.865e-05,2]
[353218716,1739664632447,-1308.18,8.865e-05,2]
[353218718,1739664632457,-818.86,8.865e-05,2]
[353218720,1739664632466,-288.28772424,8.865e-05,2]
[353218722,1739664632475,-500.0,8.865e-05,2]
[353218724,1739664632485,-500.0,8.865e-05,2]
[353218726,1739664632494,-797.87,8.865e-05,2]
[353218727,1739664632503,-500.0,8.865e-05,2]
[353218729,1739664632512,-500.0,8.865e-05,2]
[353218732,1739664632522,-661.6,8.865e-05,2]
[353218733,1739664632531,-1302.79,8.865e-05,2]
[353218736,1739664632541,-500.0,8.865e-05,2]
[353218738,1739664632552,-203.8779491,8.865e-05,2]
[353218740,1739664632565,-296.1220509,8.865e-05,2]
[353218742,1739664632574,-865.25,8.865e-05,2]
[353218744,1739664632583,-734.1,8.865e-05,2]
[353218746,1739664632593,-500.0,8.865e-05,2]
[353218748,1739664632602,-500.0,8.865e-05,2]
[353218750,1739664632612,-254.42100288,8.865e-05,2]
[353218752,1739664632623,-500.0,8.865e-05,2]
[353218753,1739664632632,-500.0,8.865e-05,2]
[353218754,1739664632641,-500.0,8.865e-05,2]
[353218756,1739664632651,-500.0,8.865e-05,2]
[353218758,1739664632661,-629.83,8.865e-05,2]
[353218760,1739664632670,-500.0,8.865e-05,2]
[353218761,1739664632679,-1334.32,8.865e-05,2]
[353218762,1739664632689,-500.0,8.865e-05,2]
[353218763,1739664632698,-500.0,8.865e-05,2]
[353218764,1739664632708,-922.06,8.865e-05,2]
[353218765,1739664632717,-500.0,8.865e-05,2]
[353218766,1739664632726,-2840.56,8.865e-05,2]
[353218767,1739664632737,-500.0,8.865e-05,2]
[353218768,1739664632746,-500.0,8.865e-05,2]
[353218769,1739664632756,-500.0,8.865e-05,2]
[353218770,1739664632766,-500.0,8.865e-05,2]
[353218771,1739664632775,-500.0,8.865e-05,2]
[353218772,1739664632785,-3011.36,8.865e-05,2]
[353218773,1739664632795,-500.0,8.865e-05,2]
[353218774,1739664632805,-500.0,8.865e-05,2]
[353218775,1739664632815,-1450.67,8.865e-05,2]
[353218776,1739664632825,-500.0,8.865e-05,2]
[353218777,1739664632835,-500.0,8.865e-05,2]
[353218778,1739664632844,-502.42163637,8.865e-05,2]
[353218779,1739664632855,-500.0,8.865e-05,2]
[353218780,1739664632864,-1167.07,8.865e-05,2]
[353218781,1739664632874,-500.0,8.865e-05,2]
[353218782,1739664632884,-500.0,8.865e-05,2]
[353218783,1739664632893,-500.0,8.865e-05,2]
[353218784,1739664632903,-970.8,8.865e-05,2]
[353218785,1739664632912,-500.0,8.865e-05,2]
[353218786,1739664633067,-367.73682754,8.865e-05,2]
[353218787,1739664633078,-743.98,8.865e-05,2]
[353218788,1739664633088,-743.98,8.865e-05,2]
[353218789,1739664633098,-862.04,8.865e-05,2]
[353218790,1739664633107,-743.98,8.865e-05,2]
[353218791,1739664633117,-503.36946444,8.865e-05,2]
[353218792,1739664633127,-500.0,8.865e-05,2]
[353218793,1739664633137,-500.0,8.865e-05,2]
[353218794,1739664633146,-568.8,8.865e-05,2]
[353218795,1739664633157,-500.0,8.865e-05,2]
[353218796,1739664633168,-500.0,8.865e-05,2]
[353218797,1739664633177,-500.0,8.865e-05,2]
[353218798,1739664633187,-500.0,8.865e-05,2]
[353218799,1739664633197,-1155.43,8.865e-05,2]
[353218800,1739664633206,-500.0,8.865e-05,2]
[353218801,1739664633216,-456.3491883,8.865e-05,2]
[353218802,1739664633226,-500.0,8.865e-05,2]
[353218803,1739664633236,-500.0,8.865e-05,2]
[353218804,1739664633246,-500.0,8.865e-05,2]
[353218805,1739664633256,-503.42203224,8.865e-05,2]
[353218806,1739664633266,-500.0,8.865e-05,2]
[353218807,1739664633276,-500.0,8.865e-05,2]
[353218808,1739664633285,-276.95608602,8.865e-05,2]
[353218809,1739664633295,-1509.95,8.865e-05,2]